fUSD/lending_fUSD_20240223
["ID","MTS","AMOUNT","RATE_DAILY","PERIOD"]
[314989356,1708716663454,-702.0,0.0003041,2]
[314989357,1708716663464,-3056.12,0.0003041,2]
[314989358,1708716663473,-156.30526137,0.00030436,7]
[314989359,1708716663483,-155.57626885,0.00030438,7]
[314989360,1708716663492,-265.64558969,0.00030441,7]
[314989361,1708716663502,-200.0,0.000305,3]
[314989362,1708716663511,-311.0,0.000305,19]
[314989363,1708716663520,-500.0,0.0003054,2]
[314989364,1708716663530,-1226.41,0.0003054,2]
[314989365,1708716663539,-748.66,0.0003054,2]
[314989366,1708716663548,-749.44,0.0003054,2]
[314989367,1708716663558,-569.85,0.0003054,2]
[314989368,1708716663567,-677.35,0.0003054,2]
[314989369,1708716663576,-1246.55,0.0003054,2]
[314989370,1708716663586,-745.51,0.0003054,2]
[314989371,1708716663595,-500.0,0.0003054,2]
[314989372,1708716663605,-578.28,0.0003054,2]
[314989373,1708716663614,-500.0,0.0003054,2]
[314989374,1708716663624,-640.46,0.0003054,2]
[314989375,1708716663634,-1048.34,0.0003054,2]
[314989376,1708716663643,-672.44000001,0.00030547,2]
[314989377,1708716663652,-931.51,0.00030547,2]
[314989378,1708716663665,-924.88,0.00030547,2]
[314989379,1708716663674,-1249.29999999,0.00030547,2]
[314989380,1708716663683,-597.434881,0.00030547,2]
[314989381,1708716663693,-956.69,0.00030547,2]
[314989382,1708716663702,-2365.59,0.00030547,2]
[314989383,1708716663711,-1344.43001316,0.00030547,2]
[314989384,1708716663721,-1433.32,0.00030547,2]
[314989385,1708716663731,-1067.75,0.00030547,2]
[314989386,1708716663740,-1175.68,0.00030547,2]
[314989387,1708716663752,-3334.68,0.00030547,2]
[314989388,1708716663761,-2604.16,0.00030547,2]
[314989389,1708716663837,-1551.45,0.00030547,2]
[314989390,1708716663848,-702.16,0.00030547,2]
[314989391,1708716663858,-3056.12,0.00030547,2]
[314989392,1708716663868,-158.00337685,0.00030556,7]
[314989393,1708716663878,-156.30526137,0.00030574,7]
[314989394,1708716663888,-160.49481861,0.00030577,7]
[314989395,1708716663898,-373.023824,0.00030591,2]
[314989396,1708716663910,-254.243819,0.00030591,2]
[314989397,1708716663920,-155.007164,0.00030591,2]
[314989398,1708716663930,-152.6064863,0.00030601,7]
[314989399,1708716663940,-337.53725946,0.00030673,7]
[314989400,1708716663949,-500.0,0.00030677,2]
[314989401,1708716663960,-1226.41,0.00030677,2]
[314989402,1708716663970,-748.66,0.00030677,2]
[314989403,1708716663979,-749.44,0.00030677,2]
[314989404,1708716663988,-569.85,0.00030677,2]
[314989405,1708716663997,-677.35,0.00030677,2]
[314989406,1708716664007,-1246.55,0.00030677,2]
[314989407,1708716664017,-745.51,0.00030677,2]
[314989408,1708716664027,-500.0,0.00030677,2]
[314989409,1708716664036,-578.28,0.00030677,2]
[314989410,1708716664045,-480.23171651,0.00030677,2]
[314989411,1708716664055,-640.46,0.00030677,2]
[314989412,1708716664065,-1048.34,0.00030677,2]
[314989413,1708716664074,-27121.63715841,0.00030685,2]
[314989414,1708716664084,-7764.71211721,0.00030685,2]
[314989415,1708716664094,-155.57626885,0.00030717,7]
[314989416,1708716664103,-154.98329938,0.00030734,7]
[314989417,1708716664113,-151.0,0.00030809,30]
[314989418,1708716664122,-500.0,0.00030814,2]
[314989419,1708716664132,-1226.41,0.00030814,2]
[314989420,1708716664141,-748.66,0.00030814,2]
[314989421,1708716664150,-749.44,0.00030814,2]
[314989422,1708716664161,-569.85,0.00030814,2]
[314989423,1708716664171,-677.35,0.00030814,2]
[314989424,1708716664181,-1246.55,0.00030814,2]
[314989425,1708716664191,-745.51,0.00030814,2]
[314989426,1708716664201,-500.0,0.00030814,2]
[314989427,1708716664211,-578.28,0.00030814,2]
[314989428,1708716664220,-640.46,0.00030814,2]
[314989429,1708716664229,-1048.34,0.00030814,2]
[314989430,1708716664241,-153.50007691,0.00030826,7]
[314989431,1708716664251,-153.31768893,0.00030844,7]
[314989432,1708716664260,-158.69,0.00030868,2]
[314989433,1708716664269,-159.51672722,0.00030919,7]
[314989434,1708716664279,-500.0,0.00030951,2]
[314989435,1708716664288,-1226.41,0.00030951,2]
[314989436,1708716664298,-748.66,0.00030951,2]
[314989437,1708716664308,-749.44,0.00030951,2]
[314989438,1708716664318,-569.85,0.00030951,2]
[314989439,1708716664327,-677.35,0.00030951,2]
[314989440,1708716664337,-1246.55,0.00030951,2]
[314989441,1708716664346,-745.51,0.00030951,2]
[314989442,1708716664356,-500.0,0.00030951,2]
[314989443,1708716664365,-578.28,0.00030951,2]
[314989444,1708716664375,-640.46,0.00030951,2]
[314989445,1708716664384,-1048.34,0.00030951,2]
[314989446,1708716664393,-265.64558969,0.00030955,7]
[314989447,1708716664404,-181.731711,0.0003096,2]
[314989448,1708716664416,-373.023824,0.0003096,2]
[314989449,1708716664426,-254.243819,0.0003096,2]
[314989450,1708716664435,-155.007164,0.0003096,2]
[314989451,1708716664445,-161.0,0.00030981,2]
[314989452,1708716664455,-200.0,0.00031,2]
[314989453,1708716664465,-200.0,0.00031,3]
[314989454,1708716664474,-616.0,0.00031,19]
[314989455,1708716664483,-4970.94547961,0.00031004,2]
[314989456,1708716664492,-337.53725946,0.00031015,7]
[314989457,1708716664503,-673.07,0.00031044,2]
[314989458,1708716664513,-155.85963337,0.00031061,7]
[314989459,1708716664523,-500.0,0.00031088,2]
[314989460,1708716664532,-1226.41,0.00031088,2]
[314989461,1708716664542,-748.66,0.00031088,2]
[314989462,1708716664551,-749.44,0.00031088,2]
[314989463,1708716664560,-569.85,0.00031088,2]
[314989464,1708716664569,-677.35,0.00031088,2]
[314989465,1708716664579,-1246.55,0.00031088,2]
[314989466,1708716664589,-745.51,0.00031088,2]
[314989467,1708716664599,-500.0,0.00031088,2]
[314989468,1708716664608,-578.28,0.00031088,2]
[314989469,1708716664617,-640.46,0.00031088,2]
[314989470,1708716664626,-1048.34,0.00031088,2]
[314989471,1708716664636,-520.18855665,0.00031129,7]
[314989472,1708716664645,-202.9,0.00031211,2]
[314989473,1708716664654,-504.00564348,0.00031225,2]
[314989474,1708716664665,-1226.41,0.00031225,2]
[314989475,1708716664675,-748.66,0.00031225,2]
[314989476,1708716664684,-749.44,0.00031225,2]
[314989477,1708716664694,-569.85,0.00031225,2]
[314989478,1708716664703,-677.35,0.00031225,2]
[314989479,1708716664712,-1246.55,0.00031225,2]
[314989480,1708716664722,-745.51,0.00031225,2]
[314989481,1708716664731,-500.0,0.00031225,2]
[314989482,1708716664741,-578.28,0.00031225,2]
[314989483,1708716664751,-640.46,0.00031225,2]
[314989484,1708716664761,-1048.34,0.00031225,2]
[314989485,1708716664770,-520.18855665,0.00031262,7]
[314989486,1708716664780,-520.18855665,0.00031265,7]
[314989487,1708716664789,-337.53725946,0.00031274,7]
[314989488,1708716664799,-156.30526137,0.00031298,7]
[314989489,1708716664808,-265.64558969,0.00031299,7]
[314989490,1708716664818,-337.53725946,0.00031322,7]
[314989491,1708716664828,-1226.41,0.00031362,2]
[314989492,1708716664838,-748.66,0.00031362,2]
[314989493,1708716664847,-749.44,0.00031362,2]
[314989494,1708716664857,-569.85,0.00031362,2]
[314989495,1708716664866,-677.35,0.00031362,2]
[314989496,1708716664876,-1246.55,0.00031362,2]
[314989497,1708716664885,-745.51,0.00031362,2]
[314989498,1708716664895,-500.0,0.00031362,2]
[314989499,1708716664904,-578.28,0.00031362,2]
[314989500,1708716664915,-640.46,0.00031362,2]
[314989501,1708716664924,-1048.34,0.00031362,2]
[314989502,1708716664933,-153.31768893,0.00031387,7]
[314989503,1708716664943,-520.18855665,0.00031389,7]
[314989504,1708716664952,-154.02083881,0.00031429,7]
[314989505,1708716664961,-151.0,0.00031437,7]
[314989506,1708716664971,-152.6064863,0.00031463,7]
[314989507,1708716664980,-337.53725946,0.00031473,7]
[314989508,1708716664989,-151.54644394,0.00031488,7]
[314989509,1708716664998,-1226.41,0.00031499,2]
[314989510,1708716665008,-748.66,0.00031499,2]
[314989511,1708716665019,-749.44,0.00031499,2]
[314989512,1708716665029,-569.85,0.00031499,2]
[314989513,1708716665038,-677.35,0.00031499,2]
[314989514,1708716665047,-1246.55,0.00031499,2]
[314989515,1708716665057,-745.51,0.00031499,2]
[314989516,1708716665066,-500.0,0.00031499,2]
[314989517,1708716665076,-578.28,0.00031499,2]
[314989518,1708716665086,-640.46,0.00031499,2]
[314989519,1708716665095,-1048.34,0.00031499,2]
[314989520,1708716665104,-200.0,0.000315,4]
[314989521,1708716665114,-1500.0,0.000315,2]
[314989522,1708716665124,-337.53725946,0.00031505,7]
[314989523,1708716665134,-194.88,0.00031533,2]
[314989524,1708716665144,-159.39088986,0.0003154,7]
[314989525,1708716665154,-153.31768893,0.00031575,7]
[314989526,1708716665163,-158.69,0.00031598,2]
[314989527,1708716665173,-155.57626885,0.00031603,7]
[314989528,1708716665182,-155.59752133,0.00031627,7]
[314989529,1708716665191,-1226.41,0.00031636,2]
[314989530,1708716665200,-748.66,0.00031636,2]
[314989531,1708716665210,-749.44,0.00031636,2]
[314989532,1708716665221,-569.85,0.00031636,2]
[314989533,1708716665230,-677.35,0.00031636,2]
[314989534,1708716665243,-1246.55,0.00031636,2]
[314989535,1708716665252,-745.51,0.00031636,2]
[314989536,1708716665262,-500.0,0.00031636,2]
[314989537,1708716665272,-578.28,0.00031636,2]
[314989538,1708716665282,-640.46,0.00031636,2]
[314989539,1708716665292,-1048.34,0.00031636,2]
[314989540,1708716665301,-224.15,0.00031644,2]
[314989541,1708716665311,-167.87801701,0.0003165,7]
[314989542,1708716665322,-222.0,0.00031692,5]
[314989543,1708716665333,-167.87801701,0.00031743,7]
[314989544,1708716665342,-152.6064863,0.00031772,7]
[314989545,1708716665352,-1226.41,0.00031773,2]
[314989546,1708716665362,-748.66,0.00031773,2]
[314989547,1708716665371,-749.44,0.00031773,2]
[314989548,1708716665381,-569.85,0.00031773,2]
[314989549,1708716665390,-677.35,0.00031773,2]
[314989550,1708716665400,-1246.55,0.00031773,2]
[314989551,1708716665410,-745.51,0.00031773,2]
[314989552,1708716665420,-500.0,0.00031773,2]
[314989553,1708716665429,-578.28,0.00031773,2]
[314989554,1708716665440,-640.46,0.00031773,2]
[314989555,1708716665449,-1048.34,0.00031773,2]
[314989556,1708716665459,-9098.68158435,0.000318,3]
[314989557,1708716665469,-156.321914,0.00031827,7]
[314989558,1708716665479,-153.50007691,0.00031848,7]
[314989559,1708716665489,-152.0,0.00031898,3]
[314989560,1708716665500,-155.14487318,0.00031905,7]
[314989561,1708716665510,-1226.41,0.0003191,2]
[314989562,1708716665520,-748.66,0.0003191,2]
[314989563,1708716665531,-749.44,0.0003191,2]
[314989564,1708716665541,-569.85,0.0003191,2]
[314989565,1708716665551,-677.35,0.0003191,2]
[314989566,1708716665560,-1246.55,0.0003191,2]
[314989567,1708716665571,-745.51,0.0003191,2]
[314989568,1708716665581,-394.58514042,0.0003191,2]
[314989569,1708716665592,-578.28,0.0003191,2]
[314989570,1708716665602,-640.46,0.0003191,2]
[314989571,1708716665613,-1048.34,0.0003191,2]
[314989572,1708716665623,-155.14487318,0.00031946,7]
[314989573,1708716665633,-337.53725946,0.0003196,7]
[314989574,1708716665643,-265.64558969,0.00031984,7]
[314989575,1708716665653,-200.0,0.00032,2]
[314989576,1708716665664,-200.0,0.00032,5]
[314989577,1708716665674,-1278.0,0.00032,3]
[314989578,1708716665685,-337.53725946,0.00032004,7]
[314989579,1708716665695,-1226.56,0.00032047,2]
[314989580,1708716665705,-748.79969602,0.00032047,2]
[314989581,1708716665714,-749.49,0.00032047,2]
[314989582,1708716665725,-569.92832168,0.00032047,2]
[314989583,1708716665735,-677.44,0.00032047,2]
[314989584,1708716665747,-1246.56,0.00032047,2]
[314989585,1708716665757,-745.67,0.00032047,2]
[314989586,1708716665767,-578.28566989,0.00032047,2]
[314989587,1708716665777,-640.64890731,0.00032047,2]
[314989588,1708716665788,-1048.52,0.00032047,2]
[314989589,1708716665798,-166.16201499,0.00032054,7]
[314989590,1708716665809,-151.0,0.00032079,4]
[314989591,1708716665819,-27121.63715841,0.0003208,2]
[314989592,1708716665829,-7764.71211721,0.0003208,2]
[314989593,1708716665840,-337.53725946,0.00032087,7]
[314989594,1708716665850,-308.7,0.000321,2]
[314989595,1708716665860,-520.18855665,0.00032127,7]
[314989596,1708716665870,-4970.94547961,0.0003213,3]
[314989597,1708716665881,-159.69428409,0.00032172,7]
[314989598,1708716665892,-155.85963337,0.00032187,7]
[314989599,1708716665902,-265.64558969,0.00032212,7]
[314989600,1708716665913,-265.64558969,0.00032215,7]
[314989601,1708716665923,-153.31768893,0.00032246,7]
[314989602,1708716665934,-520.18855665,0.00032254,7]
[314989603,1708716665944,-163.70167317,0.00032269,7]
[314989604,1708716665954,-265.64558969,0.00032276,7]
[314989605,1708716665964,-158.69,0.00032329,2]
[314989606,1708716665975,-169.19547486,0.00032332,7]
[314989607,1708716665985,-161.0,0.00032351,2]
[314989608,1708716665995,-520.18855665,0.00032371,7]
[314989609,1708716666006,-337.53725946,0.00032375,7]
[314989610,1708716666016,-194.18892276,0.00032383,2]
[314989611,1708716666026,-150.0,0.00032383,2]
[314989612,1708716666036,-194.18892276,0.00032383,2]
[314989613,1708716666046,-150.0,0.00032383,2]
[314989614,1708716666057,-194.18892276,0.00032383,2]
[314989615,1708716666067,-150.0,0.00032383,2]
[314989616,1708716666078,-520.18855665,0.00032408,7]
[314989617,1708716666088,-337.53725946,0.00032447,7]
[314989618,1708716666098,-265.64558969,0.00032523,7]
[314989619,1708716666109,-167.02514081,0.00032528,7]
[314989620,1708716666118,-160.49481861,0.00032539,7]
[314989621,1708716666129,-337.53725946,0.00032542,7]
[314989622,1708716666139,-337.53725946,0.00032577,7]
[314989623,1708716666149,-156.57354395,0.00032581,7]
[314989624,1708716666160,-153.50007691,0.00032584,7]
[314989625,1708716666170,-337.53725946,0.00032604,7]
[314989626,1708716666180,-500.0,0.00032698,2]
[314989627,1708716666190,-500.0,0.00032698,2]
[314989628,1708716666200,-500.0,0.00032698,2]
[314989629,1708716666211,-500.0,0.00032698,2]
[314989630,1708716666221,-500.0,0.00032698,2]
[314989631,1708716666232,-360.09863727,0.00032698,2]
[314989632,1708716666244,-498.23026698,0.00032698,2]
[314989633,1708716666254,-500.0,0.00032698,2]
[314989634,1708716666263,-500.0,0.00032698,2]
[314989635,1708716666274,-500.0,0.00032698,2]
[314989636,1708716666283,-500.0,0.00032698,2]
[314989637,1708716666294,-500.0,0.00032698,2]
[314989638,1708716666303,-500.0,0.00032698,2]
[314989639,1708716666313,-308.70363642,0.00032698,2]
[314989640,1708716666325,-500.0,0.00032698,2]
[314989641,1708716666335,-553.16637052,0.00032698,2]
[314989642,1708716666344,-522.67510784,0.00032698,2]
[314989643,1708716666355,-500.0,0.00032698,2]
[314989644,1708716666365,-500.0,0.00032698,2]
[314989645,1708716666375,-500.0,0.00032698,2]
[314989646,1708716666385,-500.0,0.00032698,2]
[314989647,1708716666395,-500.0,0.00032698,2]
[314989648,1708716666406,-518.95622321,0.00032698,2]
[314989649,1708716666420,-366.49298243,0.00032698,2]
[314989650,1708716666431,-503.99136064,0.00032698,2]
[314989651,1708716666441,-506.18292138,0.00032698,2]
[314989652,1708716666451,-525.84441436,0.00032698,2]
[314989653,1708716666461,-530.55182217,0.00032698,2]
[314989654,1708716666471,-500.0,0.00032698,2]
[314989655,1708716666481,-500.0,0.00032698,2]
[314989656,1708716666491,-500.0,0.00032698,2]
[314989657,1708716666502,-500.0,0.00032698,2]
[314989658,1708716666511,-500.0,0.00032698,2]
[314989659,1708716666521,-500.0,0.00032698,2]
[314989660,1708716666531,-500.0,0.00032698,2]
[314989661,1708716666541,-521.8635385,0.00032698,2]
[314989662,1708716666551,-528.87300456,0.00032698,2]
[314989663,1708716666561,-520.64539528,0.00032698,2]
[314989664,1708716666570,-500.0,0.00032698,2]
[314989665,1708716666581,-516.57280486,0.00032698,2]
[314989666,1708716666591,-500.0,0.00032698,2]
[314989667,1708716666601,-500.0,0.00032698,2]
[314989668,1708716666611,-500.0,0.00032698,2]
[314989669,1708716666621,-530.41410611,0.00032698,2]
[314989670,1708716666631,-526.71545721,0.00032698,2]
[314989671,1708716666641,-521.99181895,0.00032698,2]
[314989672,1708716666651,-500.0,0.00032698,2]
[314989673,1708716666662,-534.28748164,0.00032698,2]
[314989674,1708716666671,-517.16741385,0.00032698,2]
[314989675,1708716666681,-500.0,0.00032698,2]
[314989676,1708716666691,-500.0,0.00032698,2]
[314989677,1708716666702,-500.0,0.00032698,2]
[314989678,1708716666712,-612.33525021,0.00032698,2]
[314989679,1708716666722,-500.0,0.00032698,2]
[314989680,1708716666732,-525.21137741,0.00032698,2]
[314989681,1708716666743,-500.0,0.00032698,2]
[314989682,1708716666753,-541.72013367,0.00032698,2]
[314989683,1708716666763,-500.0,0.00032698,2]
[314989684,1708716666773,-500.0,0.00032698,2]
[314989685,1708716666783,-500.0,0.00032698,2]
[314989686,1708716666793,-500.0,0.00032698,2]
[314989687,1708716666803,-561.43131942,0.00032698,2]
[314989688,1708716666813,-500.0,0.00032698,2]
[314989689,1708716666823,-528.09413558,0.00032698,2]
[314989690,1708716666832,-500.0,0.00032698,2]
[314989691,1708716666842,-500.0,0.00032698,2]
[314989692,1708716666853,-515.38815963,0.00032698,2]
[314989693,1708716666863,-500.0,0.00032698,2]
[314989694,1708716666873,-500.0,0.00032698,2]
[314989695,1708716666883,-413.79924141,0.00032698,2]
[314989696,1708716666893,-519.00288726,0.00032698,2]
[314989697,1708716666904,-500.0,0.00032698,2]
[314989698,1708716666915,-500.0,0.00032698,2]
[314989699,1708716666925,-500.0,0.00032698,2]
[314989700,1708716666936,-528.50924207,0.00032698,2]
[314989701,1708716666946,-450.93197864,0.00032698,2]
[314989702,1708716666955,-500.0,0.00032698,2]
[314989703,1708716666965,-500.0,0.00032698,2]
[314989704,1708716666975,-500.0,0.00032698,2]
[314989705,1708716666985,-500.0,0.00032698,2]
[314989706,1708716666995,-500.0,0.00032698,2]
[314989707,1708716667004,-500.0,0.00032698,2]
[314989708,1708716667015,-500.0,0.00032698,2]
[314989709,1708716667025,-500.0,0.00032698,2]
[314989710,1708716667034,-500.0,0.00032698,2]
[314989711,1708716667044,-500.0,0.00032698,2]
[314989712,1708716667055,-500.0,0.00032698,2]
[314989713,1708716667065,-500.0,0.00032698,2]
[314989714,1708716667075,-500.0,0.00032698,2]
[314989715,1708716667085,-500.0,0.00032698,2]
[314989716,1708716667095,-500.0,0.00032698,2]
[314989717,1708716667105,-500.0,0.00032698,2]
[314989718,1708716667115,-500.0,0.00032698,2]
[314989719,1708716667125,-500.0,0.00032698,2]
[314989720,1708716667135,-1000.0,0.00032698,7]
[314989721,1708716667145,-500.0,0.00032698,2]
[314989722,1708716667155,-500.0,0.00032698,2]
[314989723,1708716667167,-500.0,0.00032698,2]
[314989724,1708716667177,-516.00983628,0.00032698,2]
[314989725,1708716667187,-3968.36,0.00032698,2]
[314989726,1708716667197,-500.0,0.00032698,2]
[314989727,1708716667207,-500.0,0.00032698,2]
[314989728,1708716667217,-500.0,0.00032698,2]
[314989729,1708716667228,-500.0,0.00032698,2]
[314989730,1708716667239,-526.90554884,0.00032698,2]
[314989731,1708716667250,-500.0,0.00032698,2]
[314989732,1708716667260,-500.0,0.00032698,2]
[314989733,1708716667271,-500.0,0.00032698,2]
[314989734,1708716667281,-500.0,0.00032698,2]
[314989735,1708716667291,-500.0,0.00032698,2]
[314989736,1708716667301,-500.0,0.00032698,2]
[314989737,1708716667312,-500.0,0.00032698,2]
[314989738,1708716667324,-825.76,0.00032698,2]
[314989739,1708716667334,-500.0,0.00032698,2]
[314989740,1708716667344,-529.94451277,0.00032698,2]
[314989741,1708716667355,-500.0,0.00032698,2]
[314989742,1708716667365,-522.03018914,0.00032698,2]
[314989743,1708716667376,-500.0,0.00032698,2]
[314989744,1708716667386,-500.0,0.00032698,2]
[314989745,1708716667396,-568.91777567,0.00032698,2]
[314989746,1708716667408,-500.0,0.00032698,2]
[314989747,1708716667419,-588.93837155,0.00032698,2]
[314989748,1708716667429,-500.0,0.00032698,2]
[314989749,1708716667440,-500.0,0.00032698,2]
[314989750,1708716667450,-523.64831472,0.00032698,2]
[314989751,1708716667460,-500.0,0.00032698,2]
[314989752,1708716667470,-500.0,0.00032698,2]
[314989753,1708716667479,-500.0,0.00032698,2]
[314989754,1708716667489,-500.0,0.00032698,2]
[314989755,1708716667499,-500.0,0.00032698,2]
[314989756,1708716667509,-500.0,0.00032698,2]
[314989757,1708716667519,-509.91902597,0.00032698,2]
[314989758,1708716667529,-518.51072397,0.00032698,2]
[314989759,1708716667539,-515.87392645,0.00032698,2]
[314989760,1708716667548,-500.0,0.00032698,2]
[314989761,1708716667558,-500.0,0.00032698,2]
[314989762,1708716667567,-423.98475019,0.00032698,2]
[314989763,1708716667577,-500.0,0.00032698,2]
[314989764,1708716667587,-500.0,0.00032698,2]
[314989765,1708716667598,-500.0,0.00032698,2]
[314989766,1708716667608,-600.97673879,0.00032698,2]
[314989767,1708716667618,-549.33796035,0.00032698,2]
[314989768,1708716667627,-500.0,0.00032698,2]
[314989769,1708716667637,-500.0,0.00032698,2]
[314989770,1708716667647,-500.0,0.00032698,2]
[314989771,1708716667657,-592.10407321,0.00032698,2]
[314989772,1708716667668,-500.0,0.00032698,2]
[314989773,1708716667678,-530.26411858,0.00032698,2]
[314989774,1708716667688,-500.0,0.00032698,2]
[314989775,1708716667697,-500.0,0.00032698,2]
[314989776,1708716667873,-500.0,0.00032698,2]
[314989777,1708716667883,-500.0,0.00032698,2]
[314989778,1708716667892,-500.0,0.00032698,2]
[314989779,1708716667902,-500.0,0.00032698,2]
[314989780,1708716667911,-500.0,0.00032698,2]
[314989781,1708716667920,-500.0,0.00032698,2]
[314989782,1708716667929,-593.57,0.00032698,2]
[314989783,1708716667939,-497.645855,0.00032698,2]
[314989784,1708716667948,-500.0,0.00032698,2]
[314989785,1708716667957,-5641.88660448,0.000327,2]
[314989786,1708716667967,-5641.88660436,0.000327,2]
[314989787,1708716667976,-5641.88660436,0.000327,2]
[314989788,1708716667985,-5641.88660436,0.000327,2]
[314989789,1708716667994,-5641.88660436,0.000327,2]
[314989790,1708716668003,-5641.88660436,0.000327,2]
[314989791,1708716668013,-5641.88660436,0.000327,2]
[314989792,1708716668022,-5641.88660436,0.000327,2]
[314989793,1708716668031,-5641.88660436,0.000327,2]
[314989794,1708716668041,-5641.88660436,0.000327,2]
[314989795,1708716668050,-5641.88660436,0.000327,2]
[314989796,1708716668060,-5641.88660436,0.000327,2]
[314989797,1708716668070,-5641.88660436,0.000327,2]
[314989798,1708716668079,-5641.88660436,0.000327,2]
[314989799,1708716668088,-5641.88660436,0.000327,2]
[314989800,1708716668098,-5641.88660436,0.000327,2]
[314989801,1708716668107,-5641.88660436,0.000327,2]
[314989802,1708716668117,-5641.88660436,0.000327,2]
[314989803,1708716668126,-5641.88660436,0.000327,2]
[314989804,1708716668135,-5641.88660436,0.000327,2]
[314989805,1708716668145,-151.0,0.00032734,2]
[314989806,1708716668154,-1000.0,0.0003275,2]
[314989807,1708716668164,-156.30526137,0.00032762,7]
[314989808,1708716668174,-520.18855665,0.00032787,7]
[314989809,1708716668183,-154.98329938,0.00032796,7]
[314989810,1708716668193,-445.0,0.000328,2]
[314989811,1708716668203,-160.49481861,0.00032827,7]
[314989812,1708716668212,-500.0,0.00032835,2]
[314989813,1708716668221,-500.0,0.00032835,2]
[314989814,1708716668232,-526.34971749,0.00032835,2]
[314989815,1708716668243,-500.0,0.00032835,2]
[314989816,1708716668252,-500.0,0.00032835,2]
[314989817,1708716668261,-500.0,0.00032835,2]
[314989818,1708716668271,-500.0,0.00032835,2]
[314989819,1708716668281,-500.0,0.00032835,2]
[314989820,1708716668290,-500.0,0.00032835,2]
[314989821,1708716668300,-500.0,0.00032835,2]
[314989822,1708716668309,-500.0,0.00032835,2]
[314989823,1708716668319,-618.93,0.00032835,2]
[314989824,1708716668329,-500.0,0.00032835,2]
[314989825,1708716668339,-500.0,0.00032835,2]
[314989826,1708716668348,-500.0,0.00032835,2]
[314989827,1708716668357,-615.77801131,0.00032835,2]
[314989828,1708716668366,-500.0,0.00032835,2]
[314989829,1708716668375,-500.0,0.00032835,2]
[314989830,1708716668385,-500.0,0.00032835,2]
[314989831,1708716668395,-500.0,0.00032835,2]
[314989832,1708716668404,-500.0,0.00032835,2]
[314989833,1708716668415,-533.71154368,0.00032835,2]
[314989834,1708716668424,-500.0,0.00032835,2]
[314989835,1708716668433,-500.0,0.00032835,2]
[314989836,1708716668442,-500.0,0.00032835,2]
[314989837,1708716668451,-500.0,0.00032835,2]
[314989838,1708716668460,-498.68969128,0.00032835,2]
[314989839,1708716668469,-500.0,0.00032835,2]
[314989840,1708716668478,-500.0,0.00032835,2]
[314989841,1708716668487,-500.0,0.00032835,2]
[314989842,1708716668496,-500.0,0.00032835,2]
[314989843,1708716668505,-475.0,0.00032835,2]
[314989844,1708716668514,-500.0,0.00032835,2]
[314989845,1708716668523,-642.01790246,0.00032835,2]
[314989846,1708716668533,-500.0,0.00032835,2]
[314989847,1708716668542,-500.0,0.00032835,2]
[314989848,1708716668551,-1000.0,0.00032835,7]
[314989849,1708716668560,-500.0,0.00032835,2]
[314989850,1708716668569,-3968.36,0.00032835,2]
[314989851,1708716668578,-500.0,0.00032835,2]
[314989852,1708716668588,-500.0,0.00032835,2]
[314989853,1708716668598,-500.0,0.00032835,2]
[314989854,1708716668607,-592.04569112,0.00032835,2]
[314989855,1708716668626,-500.0,0.00032835,2]